fUSD/lending_fUSD_20250426
["ID","MTS","AMOUNT","RATE_DAILY","PERIOD"]
[359093588,1745704245580,-628.450043,0.00019794,2]
[359093590,1745704245591,-459.83,0.00019794,2]
[359093591,1745704245601,-400.0,0.00019794,2]
[359093592,1745704245611,-405.06,0.00019794,2]
[359093593,1745704245621,-400.0,0.00019794,2]
[359093594,1745704245631,-500.0,0.00019794,2]
[359093595,1745704245642,-400.0,0.00019794,2]
[359093596,1745704245652,-400.0,0.00019794,2]
[359093597,1745704245661,-721.54,0.00019794,2]
[359093598,1745704245671,-520.48143566,0.00019794,2]
[359093599,1745704245682,-400.0,0.00019794,2]
[359093600,1745704245692,-500.0,0.00019794,2]
[359093601,1745704245702,-400.0,0.00019794,2]
[359093602,1745704245712,-400.0,0.00019794,2]
[359093603,1745704245723,-151.0,0.00019794,2]
[359093604,1745704245733,-151.0,0.00019794,2]
[359093605,1745704245742,-163.421921,0.00019794,2]
[359093606,1745704245752,-400.0,0.00019794,2]
[359093607,1745704245763,-425.33874986,0.00019794,2]
[359093608,1745704245773,-636.24,0.00019794,2]
[359093609,1745704245783,-400.0,0.00019794,2]
[359093610,1745704245793,-400.0,0.00019794,2]
[359093611,1745704245803,-400.0,0.00019794,2]
[359093612,1745704245813,-400.0,0.00019794,2]
[359093613,1745704245823,-400.0,0.00019794,2]
[359093614,1745704245833,-400.0,0.00019794,2]
[359093615,1745704245843,-400.0,0.00019794,2]
[359093616,1745704245853,-400.0,0.00019794,2]
[359093617,1745704245863,-400.0,0.00019794,2]
[359093618,1745704245872,-776.66,0.00019794,2]
[359093619,1745704245882,-400.0,0.00019794,2]
[359093620,1745704245892,-400.0,0.00019794,2]
[359093621,1745704245902,-400.0,0.00019794,2]
[359093622,1745704245912,-494.71801646,0.00019794,2]
[359093623,1745704245922,-484.87,0.00019794,2]
[359093624,1745704245932,-400.0,0.00019794,2]
[359093625,1745704245943,-400.0,0.00019794,2]
[359093626,1745704245953,-400.0,0.00019794,2]
[359093627,1745704245963,-735.72,0.00019794,2]
[359093628,1745704245973,-151.0,0.00019794,2]
[359093629,1745704245982,-151.0,0.00019794,2]
[359093630,1745704245993,-151.0,0.00019794,2]
[359093631,1745704246003,-506.30943716,0.00019794,2]
[359093632,1745704246013,-400.0,0.00019794,2]
[359093633,1745704246023,-400.0,0.00019794,2]
[359093634,1745704246033,-400.0,0.00019794,2]
[359093635,1745704246043,-500.0,0.00019794,2]
[359093636,1745704246052,-400.0,0.00019794,2]
[359093637,1745704246063,-431.13,0.00019794,2]
[359093638,1745704246074,-400.0,0.00019794,2]
[359093639,1745704246084,-155.511929,0.00019794,2]
[359093640,1745704246094,-400.0,0.00019794,2]
[359093641,1745704246104,-518.00734972,0.00019794,2]
[359093642,1745704246113,-400.0,0.00019794,2]
[359093643,1745704246123,-400.0,0.00019794,2]
[359093644,1745704246133,-597.82,0.00019794,2]
[359093645,1745704246142,-400.0,0.00019794,2]
[359093648,1745704246153,-400.0,0.00019794,2]
[359093649,1745704246162,-546.31,0.00019794,2]
[359093651,1745704246173,-400.0,0.00019794,2]
[359093653,1745704246182,-151.0,0.00019794,2]
[359093655,1745704246192,-400.0,0.00019794,2]
[359093657,1745704246202,-400.0,0.00019794,2]
[359093659,1745704246212,-400.0,0.00019794,2]
[359093661,1745704246222,-176.625401,0.00019794,2]
[359093663,1745704246231,-176.625401,0.00019794,2]
[359093666,1745704246242,-155.922673,0.00019794,2]
[359093668,1745704246252,-595.13,0.00019794,2]
[359093669,1745704246262,-421.2,0.00019794,2]
[359093671,1745704246272,-400.0,0.00019794,2]
[359093673,1745704246283,-176.625401,0.00019794,2]
[359093675,1745704246293,-176.625401,0.00019794,2]
[359093677,1745704246303,-561.97,0.00019794,2]
[359093679,1745704246313,-299.45988,0.00019794,2]
[359093681,1745704246324,-400.0,0.00019794,2]
[359093683,1745704246334,-400.0,0.00019794,2]
[359093684,1745704246345,-400.0,0.00019794,2]
[359093685,1745704246355,-1311.36,0.00019794,2]
[359093686,1745704246367,-400.0,0.00019794,2]
[359093688,1745704246376,-400.0,0.00019794,2]
[359093690,1745704246386,-400.0,0.00019794,2]
[359093692,1745704246396,-400.0,0.00019794,2]
[359093694,1745704246406,-400.0,0.00019794,2]
[359093696,1745704246416,-400.0,0.00019794,2]
[359093698,1745704246425,-400.0,0.00019794,2]
[359093700,1745704246435,-500.0,0.00019794,2]
[359093702,1745704246446,-711.44,0.00019794,2]
[359093704,1745704246455,-151.0,0.00019794,2]
[359093706,1745704246465,-151.0,0.00019794,2]
[359093707,1745704246475,-400.0,0.00019794,2]
[359093708,1745704246484,-400.0,0.00019794,2]
[359093709,1745704246494,-730.12,0.00019794,2]
[359093710,1745704246504,-400.0,0.00019794,2]
[359093711,1745704246516,-400.0,0.00019794,2]
[359093712,1745704246527,-151.0,0.00019794,2]
[359093713,1745704246537,-1341.0,0.00019794,2]
[359093714,1745704246547,-151.0,0.00019794,2]
[359093715,1745704246557,-400.0,0.00019794,2]
[359093716,1745704246567,-151.0,0.00019794,2]
[359093717,1745704246577,-151.0,0.00019794,2]
[359093718,1745704246587,-400.0,0.00019794,2]
[359093719,1745704246597,-400.0,0.00019794,2]
[359093720,1745704246612,-500.0,0.00019794,2]
[359093721,1745704246629,-238.91678823,0.00019794,2]
[359093722,1745704246646,-400.0,0.00019794,2]
[359093723,1745704246659,-518.58376662,0.00019794,2]
[359093724,1745704246673,-400.0,0.00019794,2]
[359093725,1745704246689,-151.0,0.00019794,2]
[359093726,1745704246704,-151.0,0.00019794,2]
[359093727,1745704246720,-400.0,0.00019794,2]
[359093728,1745704246735,-400.0,0.00019794,2]
[359093729,1745704246750,-500.0,0.00019794,2]
[359093730,1745704246764,-400.0,0.00019794,2]
[359093731,1745704246776,-400.0,0.00019794,2]
[359093732,1745704246791,-400.0,0.00019794,2]
[359093733,1745704246806,-400.0,0.00019794,2]
[359093734,1745704246821,-400.0,0.00019794,2]
[359093735,1745704246836,-500.0,0.00019794,2]
[359093736,1745704246851,-400.0,0.00019794,2]
[359093737,1745704246867,-400.0,0.00019794,2]
[359093738,1745704246881,-400.0,0.00019794,2]
[359093739,1745704246897,-158.424031,0.00019794,2]
[359093740,1745704246912,-400.0,0.00019794,2]
[359093741,1745704246927,-516.95,0.00019794,2]
[359093742,1745704246945,-400.0,0.00019794,2]
[359093743,1745704246959,-400.0,0.00019794,2]
[359093744,1745704246975,-153.419571,0.00019794,2]
[359093745,1745704246990,-400.11,0.00019794,2]
[359093746,1745704247004,-656.75,0.00019794,2]
[359093747,1745704247018,-400.0,0.00019794,2]
[359093748,1745704247029,-400.0,0.00019794,2]
[359093749,1745704247042,-400.0,0.00019794,2]
[359093750,1745704247055,-400.0,0.00019794,2]
[359093751,1745704247074,-400.0,0.00019794,2]
[359093752,1745704247086,-400.0,0.00019794,2]
[359093753,1745704247097,-1503.82,0.00019794,2]
[359093754,1745704247109,-151.0,0.00019794,2]
[359093755,1745704247123,-151.0,0.00019794,2]
[359093756,1745704247140,-486.52,0.00019794,2]
[359093757,1745704247151,-502.21703479,0.00019794,2]
[359093758,1745704247163,-515.42272426,0.00019794,2]
[359093759,1745704247176,-251.69064904,0.00019794,2]
[359093760,1745704247188,-395.04628918,0.00019794,2]
[359093761,1745704247201,-400.0,0.00019794,2]
[359093762,1745704247214,-400.0,0.00019794,2]
[359093763,1745704247226,-400.0,0.00019794,2]
[359093764,1745704247239,-400.0,0.00019794,2]
[359093765,1745704247251,-560.86,0.00019794,2]
[359093766,1745704247266,-400.0,0.00019794,2]
[359093767,1745704247278,-400.0,0.00019794,2]
[359093768,1745704247291,-400.0,0.00019794,2]
[359093769,1745704247305,-400.0,0.00019794,2]
[359093770,1745704247319,-150.0,0.00019794,2]
[359093771,1745704247332,-500.0,0.00019794,2]
[359093772,1745704247344,-400.0,0.00019794,2]
[359093773,1745704247357,-400.0,0.00019794,2]
[359093774,1745704247370,-500.0,0.00019794,2]
[359093775,1745704247382,-462.4,0.00019794,2]
[359093776,1745704247395,-400.0,0.00019794,2]
[359093777,1745704247407,-400.0,0.00019794,2]
[359093778,1745704247420,-400.0,0.00019794,2]
[359093779,1745704247433,-400.0,0.00019794,2]
[359093780,1745704247446,-400.0,0.00019794,2]
[359093781,1745704247458,-400.0,0.00019794,2]
[359093782,1745704247471,-502.9539834,0.00019794,2]
[359093783,1745704247483,-416.25,0.00019794,2]
[359093784,1745704247501,-400.0,0.00019794,2]
[359093785,1745704247514,-500.0,0.00019794,2]
[359093786,1745704247527,-447.07,0.00019794,2]
[359093787,1745704247540,-525.39,0.00019794,2]
[359093788,1745704247553,-400.0,0.00019794,2]
[359093789,1745704247565,-151.0,0.00019794,2]
[359093790,1745704247578,-427.87,0.00019794,2]
[359093791,1745704247592,-400.0,0.00019794,2]
[359093792,1745704247604,-504.65,0.00019794,2]
[359093793,1745704247618,-400.0,0.00019794,2]
[359093794,1745704247630,-400.0,0.00019794,2]
[359093795,1745704247643,-500.0,0.00019794,2]
[359093796,1745704247655,-472.06,0.00019794,2]
[359093797,1745704247668,-400.0,0.00019794,2]
[359093798,1745704247681,-500.0,0.00019794,2]
[359093799,1745704247696,-400.0,0.00019794,2]
[359093800,1745704247709,-400.0,0.00019794,2]
[359093801,1745704247722,-400.0,0.00019794,2]
[359093802,1745704247735,-400.0,0.00019794,2]
[359093803,1745704247747,-465.2,0.00019794,2]
[359093804,1745704247759,-500.0,0.00019794,2]
[359093805,1745704247771,-400.0,0.00019794,2]
[359093806,1745704247784,-583.09,0.00019794,2]
[359093807,1745704247797,-400.0,0.00019794,2]
[359093808,1745704247810,-400.0,0.00019794,2]
[359093809,1745704247823,-400.0,0.00019794,2]
[359093810,1745704247835,-400.0,0.00019794,2]
[359093811,1745704247848,-400.0,0.00019794,2]
[359093812,1745704247860,-400.0,0.00019794,2]
[359093813,1745704247875,-400.0,0.00019794,2]
[359093814,1745704247888,-400.0,0.00019794,2]
[359093815,1745704247901,-400.0,0.00019794,2]
[359093816,1745704247914,-400.0,0.00019794,2]
[359093817,1745704247927,-500.0,0.00019794,2]
[359093818,1745704247944,-400.0,0.00019794,2]
[359093819,1745704247957,-400.0,0.00019794,2]
[359093820,1745704247969,-400.0,0.00019794,2]
[359093821,1745704247982,-150.50202754,0.00019794,2]
[359093822,1745704247995,-500.0,0.00019794,2]
[359093823,1745704248008,-507.73663296,0.00019794,2]
[359093824,1745704248020,-258.871286,0.00019794,2]
[359093825,1745704248034,-400.0,0.00019794,2]
[359093826,1745704248048,-258.871286,0.00019794,2]
[359093827,1745704248062,-152.016543,0.00019794,2]
[359093828,1745704248076,-400.0,0.00019794,2]
[359093829,1745704248090,-2905.48,0.00019794,2]
[359093830,1745704248103,-400.0,0.00019794,2]
[359093831,1745704248117,-400.0,0.00019794,2]
[359093832,1745704248130,-400.0,0.00019794,2]
[359093833,1745704248144,-400.0,0.00019794,2]
[359093834,1745704248159,-258.871286,0.00019794,2]
[359093835,1745704248172,-400.0,0.00019794,2]
[359093836,1745704248185,-258.871286,0.00019794,2]
[359093837,1745704248199,-400.0,0.00019794,2]
[359093838,1745704248212,-400.0,0.00019794,2]
[359093839,1745704248225,-510.4999362,0.00019794,2]
[359093840,1745704248238,-526.98,0.00019794,2]
[359093841,1745704248252,-272.184604,0.00019794,2]
[359093842,1745704248265,-499.48,0.00019794,2]
[359093843,1745704248278,-400.0,0.00019794,2]
[359093844,1745704248292,-272.184604,0.00019794,2]
[359093845,1745704248305,-1538.63,0.00019794,2]
[359093846,1745704248317,-564.25,0.00019794,2]
[359093847,1745704248330,-400.0,0.00019794,2]
[359093848,1745704248343,-400.0,0.00019794,2]
[359093849,1745704248356,-654.51,0.00019794,2]
[359093850,1745704248369,-151.0,0.00019794,2]
[359093851,1745704248381,-151.0,0.00019794,2]
[359093852,1745704248394,-400.0,0.00019794,2]
[359093853,1745704248406,-528.99536645,0.00019794,2]
[359093854,1745704248420,-258.1716185,0.00019794,2]
[359093855,1745704248432,-161.549531,0.00019794,2]
[359093856,1745704248446,-633.48,0.00019794,2]
[359093857,1745704248459,-400.0,0.00019794,2]
[359093858,1745704248472,-400.0,0.00019794,2]
[359093859,1745704248485,-400.0,0.00019794,2]
[359093860,1745704248498,-408.3,0.00019794,2]
[359093861,1745704248511,-400.0,0.00019794,2]
[359093862,1745704248524,-400.0,0.00019794,2]
[359093863,1745704248537,-505.80791502,0.00019794,2]
[359093864,1745704248550,-151.0,0.00019794,2]
[359093865,1745704248563,-400.0,0.00019794,2]
[359093866,1745704248576,-400.0,0.00019794,2]
[359093867,1745704248589,-400.0,0.00019794,2]
[359093868,1745704248602,-400.0,0.00019794,2]
[359093869,1745704248615,-529.05749259,0.00019794,2]
[359093870,1745704248628,-400.0,0.00019794,2]
[359093871,1745704248641,-416.49,0.00019794,2]
[359093872,1745704248654,-507.27729147,0.00019794,2]
[359093873,1745704248667,-151.0,0.00019794,2]
[359093874,1745704248679,-400.0,0.00019794,2]
[359093875,1745704248692,-400.0,0.00019794,2]
[359093876,1745704248705,-400.0,0.00019794,2]
[359093877,1745704248718,-151.0,0.00019794,2]
[359093878,1745704248730,-158.679657,0.00019794,2]
[359093879,1745704248743,-400.0,0.00019794,2]
[359093880,1745704248756,-609.73,0.00019794,2]
[359093881,1745704248769,-181.05139569,0.00019794,2]
[359093882,1745704248782,-429.37,0.00019794,2]
[359093883,1745704248795,-151.0,0.00019794,2]
[359093884,1745704248808,-151.0,0.00019794,2]
[359093885,1745704248821,-151.0,0.00019794,2]
[359093886,1745704248833,-161.111419,0.00019794,2]
[359093887,1745704248846,-400.0,0.00019794,2]
[359093888,1745704248860,-608.65,0.00019794,2]
[359093889,1745704248873,-400.0,0.00019794,2]
[359093890,1745704248886,-300.0,0.00019794,2]
[359093891,1745704248899,-400.0,0.00019794,2]
[359093892,1745704248913,-462.21,0.00019794,2]
[359093893,1745704248925,-400.0,0.00019794,2]
[359093894,1745704248943,-400.0,0.00019794,2]
[359093895,1745704248956,-151.0,0.00019794,2]
[359093896,1745704248969,-400.0,0.00019794,2]
[359093897,1745704248984,-151.0,0.00019794,2]
[359093898,1745704248997,-400.0,0.00019794,2]
[359093899,1745704249012,-400.0,0.00019794,2]
[359093900,1745704249025,-500.0,0.00019794,2]
[359093901,1745704249037,-400.0,0.00019794,2]
[359093902,1745704249050,-531.68,0.00019794,2]
[359093903,1745704249062,-389.02463321,0.00019794,2]
[359093904,1745704249075,-691.09,0.00019794,2]
[359093905,1745704249089,-500.0,0.00019794,2]
[359093906,1745704249103,-400.0,0.00019794,2]
[359093907,1745704249116,-400.0,0.00019794,2]
[359093908,1745704249129,-400.0,0.00019794,2]
[359093909,1745704249142,-151.0,0.00019794,2]
[359093910,1745704249155,-151.0,0.00019794,2]
[359093911,1745704249168,-400.0,0.00019794,2]
[359093912,1745704249181,-400.0,0.00019794,2]
[359093913,1745704249194,-400.0,0.00019794,2]
[359093914,1745704249207,-400.0,0.00019794,2]
[359093915,1745704249217,-151.0,0.00019794,2]
[359093916,1745704249228,-499.61,0.00019794,2]
[359093917,1745704249238,-400.0,0.00019794,2]
[359093918,1745704249248,-400.0,0.00019794,2]
[359093919,1745704249258,-759.13,0.00019794,2]
[359093920,1745704249268,-400.0,0.00019794,2]
[359093921,1745704249278,-164.3326,0.00019794,2]
[359093922,1745704249289,-681.38,0.00019794,2]
[359093923,1745704249703,-400.0,0.00019794,2]
[359093924,1745704249735,-164.3326,0.00019794,2]
[359093925,1745704249757,-830.34,0.00019794,2]
[359093926,1745704249783,-400.0,0.00019794,2]
[359093927,1745704249805,-400.0,0.00019794,2]
[359093928,1745704249815,-151.0,0.00019794,2]
[359093929,1745704249829,-400.0,0.00019794,2]
[359093930,1745704249839,-412.148996,0.00019794,2]
[359093931,1745704249848,-412.148996,0.00019794,2]
[359093932,1745704249858,-400.0,0.00019794,2]
[359093933,1745704249870,-166.08524711,0.00019794,2]
[359093934,1745704249881,-764.35,0.00019794,2]
[359093935,1745704249891,-412.148996,0.00019794,2]
[359093936,1745704249901,-400.0,0.00019794,2]
[359093937,1745704249911,-412.148996,0.00019794,2]
[359093938,1745704249921,-400.0,0.00019794,2]
[359093939,1745704249931,-400.0,0.00019794,2]
[359093940,1745704249944,-151.0,0.00019794,2]
[359093941,1745704249955,-400.0,0.00019794,2]
[359093942,1745704249964,-151.0,0.00019794,2]
[359093943,1745704249974,-500.0,0.00019794,2]
[359093944,1745704249983,-400.0,0.00019794,2]
[359093945,1745704249993,-637.14,0.00019794,2]
[359093946,1745704250004,-627.22,0.00019794,2]
[359093947,1745704250014,-400.0,0.00019794,2]
[359093948,1745704250024,-662.85,0.00019794,2]
[359093949,1745704250033,-400.0,0.00019794,2]
[359093950,1745704250043,-400.0,0.00019794,2]
[359093951,1745704250052,-500.0,0.00019794,2]
[359093952,1745704250062,-400.0,0.00019794,2]
[359093953,1745704250072,-400.0,0.00019794,2]
[359093954,1745704250081,-400.0,0.00019794,2]
[359093955,1745704250090,-400.0,0.00019794,2]
[359093956,1745704250100,-400.0,0.00019794,2]
[359093957,1745704250109,-400.0,0.00019794,2]
[359093958,1745704250119,-151.0,0.00019794,2]
[359093959,1745704250129,-151.0,0.00019794,2]
[359093960,1745704250138,-250.63054389,0.00019794,2]
[359093961,1745704250149,-400.0,0.00019794,2]
[359093962,1745704250159,-427.47655782,0.00019794,2]
[359093963,1745704250169,-400.0,0.00019794,2]
[359093964,1745704250180,-294.062438,0.00019794,2]
[359093965,1745704250191,-500.0,0.00019794,2]
[359093966,1745704250201,-400.0,0.00019794,2]
[359093967,1745704250212,-400.0,0.00019794,2]
[359093968,1745704250224,-186.896692,0.00019794,2]
[359093969,1745704250234,-500.0,0.00019794,2]
[359093970,1745704250245,-186.896692,0.00019794,2]
[359093971,1745704250255,-400.0,0.00019794,2]
[359093972,1745704250265,-400.0,0.00019794,2]
[359093973,1745704250276,-155.070762,0.00019794,2]
[359093974,1745704250286,-186.896692,0.00019794,2]
[359093975,1745704250295,-500.0,0.00019794,2]
[359093976,1745704250305,-186.896692,0.00019794,2]
[359093977,1745704250315,-400.0,0.00019794,2]
[359093978,1745704250324,-400.0,0.00019794,2]
[359093979,1745704250336,-151.0,0.00019794,2]
[359093980,1745704250345,-579.31,0.00019794,2]
[359093981,1745704250355,-151.0,0.00019794,2]
[359093982,1745704250364,-500.0,0.00019794,2]
[359093983,1745704250374,-3462.36,0.00019794,2]
[359093984,1745704250383,-600.3,0.00019794,2]
[359093985,1745704250392,-151.0,0.00019794,2]
[359093986,1745704250402,-151.0,0.00019794,2]
[359093987,1745704250411,-400.0,0.00019794,2]
[359093988,1745704250420,-162.100813,0.00019794,2]
[359093989,1745704250430,-162.100813,0.00019794,2]
[359093990,1745704250439,-424.95,0.00019794,2]
[359093991,1745704250448,-162.100813,0.00019794,2]
[359093992,1745704250457,-162.100813,0.00019794,2]
[359093993,1745704250467,-400.0,0.00019794,2]
[359093994,1745704250479,-400.0,0.00019794,2]
[359093995,1745704250490,-400.0,0.00019794,2]
[359093996,1745704250502,-400.0,0.00019794,2]
[359093997,1745704250513,-500.0,0.00019794,2]
[359093998,1745704250522,-400.0,0.00019794,2]
[359093999,1745704250532,-750.72,0.00019794,2]
[359094000,1745704250542,-458.52,0.00019794,2]
[359094001,1745704250552,-500.0,0.00019794,2]
[359094002,1745704250564,-400.0,0.00019794,2]
[359094003,1745704250574,-460.98,0.00019794,2]
[359094004,1745704250584,-487.91,0.00019794,2]
[359094005,1745704250594,-927.368738,0.00019794,2]
[359094006,1745704250604,-927.368738,0.00019794,2]
[359094007,1745704250614,-736.63,0.00019794,2]
[359094008,1745704250624,-927.368738,0.00019794,2]
[359094009,1745704250636,-927.368738,0.00019794,2]
[359094010,1745704250648,-500.0,0.00019794,2]
[359094011,1745704250658,-400.0,0.00019794,2]
[359094012,1745704250667,-151.321625,0.00019794,2]
[359094013,1745704250677,-400.0,0.00019794,2]
[359094014,1745704250686,-400.0,0.00019794,2]
[359094015,1745704250695,-400.0,0.00019794,2]
[359094016,1745704250704,-400.0,0.00019794,2]
[359094017,1745704250715,-228.245895,0.00019794,2]
[359094018,1745704250724,-228.245895,0.00019794,2]
[359094019,1745704250736,-400.0,0.00019794,2]
[359094020,1745704250745,-228.245895,0.00019794,2]
[359094021,1745704250755,-228.245895,0.00019794,2]
[359094022,1745704250764,-151.0,0.00019794,2]
[359094023,1745704250774,-690.97,0.00019794,2]
[359094024,1745704250783,-151.0,0.00019794,2]
[359094025,1745704250793,-199.41459807,0.00019794,2]
[359094026,1745704250803,-291.51927,0.00019794,2]
[359094027,1745704250812,-151.0,0.00019794,2]
[359094028,1745704250822,-151.0,0.00019794,2]
[359094029,1745704250832,-400.0,0.00019794,2]
[359094030,1745704250842,-486.21,0.00019794,2]
[359094031,1745704250851,-942.99,0.00019794,2]
[359094032,1745704250861,-400.0,0.00019795,2]
[359094033,1745704250871,-536.94466659,0.00019795,2]
[359094034,1745704250881,-400.0,0.00019795,2]
[359094035,1745704250890,-400.0,0.00019795,2]
[359094036,1745704250900,-400.0,0.00019795,2]
[359094037,1745704250909,-400.0,0.00019795,2]
[359094038,1745704250919,-400.0,0.00019795,2]
[359094039,1745704250929,-400.0,0.00019795,2]
[359094040,1745704250943,-400.0,0.00019795,2]
[359094041,1745704250953,-400.0,0.00019795,2]
[359094042,1745704250962,-400.0,0.00019795,2]
[359094043,1745704250973,-153.995718,0.00019795,2]
[359094044,1745704250983,-151.0,0.00019795,2]
[359094045,1745704250993,-151.0,0.00019795,2]
[359094046,1745704251003,-152.817562,0.00019795,2]
[359094047,1745704251015,-207.069999,0.00019795,2]
[359094048,1745704251026,-207.069999,0.00019795,2]
[359094049,1745704251036,-150.0,0.00019795,2]
[359094050,1745704251046,-151.0,0.00019795,2]
[359094051,1745704251056,-796.39,0.00019795,2]
[359094052,1745704251067,-796.39,0.00019795,2]
[359094053,1745704251076,-796.39,0.00019795,2]
[359094054,1745704251087,-796.39,0.00019795,2]
[359094055,1745704251098,-796.39,0.00019795,2]
[359094056,1745704251108,-151.0,0.00019795,2]
[359094057,1745704251118,-628.450043,0.00019795,2]
[359094058,1745704251128,-628.450043,0.00019795,2]
[359094059,1745704251138,-936.75,0.00019795,2]
[359094060,1745704251148,-151.0,0.00019795,2]
[359094061,1745704251158,-400.0,0.00019795,2]
[359094062,1745704251168,-500.0,0.00019795,2]
[359094063,1745704251178,-380.18,0.00019795,2]
[359094064,1745704251187,-400.0,0.00019795,2]
[359094065,1745704251197,-400.0,0.00019795,2]
[359094066,1745704251207,-671.65,0.00019795,2]
[359094067,1745704251217,-400.0,0.00019795,2]
[359094068,1745704251227,-718.27,0.00019795,2]
[359094069,1745704251237,-151.0,0.00019795,2]
[359094070,1745704251247,-429.78,0.00019795,2]
[359094071,1745704251257,-649.43,0.00019795,2]
[359094072,1745704251267,-531.85,0.00019795,2]
[359094073,1745704251277,-730.12,0.00019795,2]
[359094074,1745704251286,-730.12,0.00019795,2]
[359094075,1745704251296,-730.12,0.00019795,2]
[359094076,1745704251306,-730.12,0.00019795,2]
[359094077,1745704251315,-730.12,0.00019795,2]
[359094078,1745704251326,-500.0,0.00019795,2]
[359094079,1745704251335,-500.0,0.00019795,2]
[359094080,1745704251345,-500.0,0.00019795,2]
[359094081,1745704251354,-500.0,0.00019795,2]
[359094082,1745704251364,-500.0,0.00019795,2]
[359094083,1745704251374,-150.0,0.00019795,2]
[359094084,1745704251383,-500.0,0.00019795,2]
[359094085,1745704251393,-272.184604,0.00019795,2]
[359094086,1745704251402,-272.184604,0.00019795,2]
[359094087,1745704251412,-151.0,0.00019795,2]
[359094088,1745704251421,-151.0,0.00019795,2]
[359094089,1745704251431,-151.0,0.00019795,2]
[359094090,1745704251440,-151.0,0.00019795,2]
[359094091,1745704251450,-151.0,0.00019795,2]
[359094092,1745704251459,-168.694553,0.00019795,2]
[359094093,1745704251469,-164.3326,0.00019795,2]
[359094094,1745704251479,-164.3326,0.00019795,2]
[359094095,1745704251487,-151.0,0.00019795,2]
[359094096,1745704251497,-500.0,0.00019795,2]
[359094097,1745704251506,-500.0,0.00019795,2]
[359094098,1745704251517,-500.0,0.00019795,2]
[359094099,1745704251527,-250.46,0.00019795,2]
[359094100,1745704251537,-151.0,0.00019795,2]
[359094101,1745704251547,-500.0,0.00019795,2]
[359094102,1745704251557,-151.0,0.00019795,2]
[359094103,1745704251566,-500.0,0.00019795,2]
[359094104,1745704251576,-215.28252671,0.00019795,2]
[359094105,1745704251585,-538.44,0.00019795,2]
[359094106,1745704251595,-500.0,0.00019795,2]
[359094107,1745704251605,-154.552934,0.00019796,2]
[359094108,1745704251616,-151.0,0.00019796,2]
[359094109,1745704251626,-151.0,0.00019796,2]
[359094110,1745704251636,-151.0,0.00019796,2]
[359094111,1745704251645,-151.0,0.00019796,2]
[359094112,1745704251655,-151.0,0.00019796,2]
[359094113,1745704251664,-151.0,0.00019796,2]
[359094114,1745704251674,-151.385072,0.00019796,2]
[359094115,1745704251683,-151.0,0.00019796,2]
[359094116,1745704251693,-151.0,0.00019796,2]
[359094117,1745704251702,-270.31,0.00019796,2]